fUST/lending_fUST_20240817
["ID","MTS","AMOUNT","RATE_DAILY","PERIOD"]
[335144598,1723890685977,-503.41022864,0.00025479,2]
[335144599,1723890685989,-500.0,0.00025479,2]
[335144600,1723890686000,-500.0,0.00025479,2]
[335144601,1723890686012,-500.0,0.00025479,2]
[335144602,1723890686024,-500.0,0.00025479,2]
[335144603,1723890686036,-1197.09,0.00025479,2]
[335144604,1723890686050,-663.25,0.00025479,2]
[335144605,1723890686060,-500.0,0.00025479,2]
[335144606,1723890686071,-553.57,0.00025479,2]
[335144607,1723890686083,-500.0,0.00025479,2]
[335144608,1723890686093,-500.0,0.00025479,2]
[335144609,1723890686105,-833.32,0.00025479,2]
[335144610,1723890686115,-500.0,0.00025479,2]
[335144611,1723890686125,-593.58,0.00025479,2]
[335144612,1723890686135,-635.22,0.00025479,2]
[335144613,1723890686145,-500.0,0.00025479,2]
[335144614,1723890686157,-500.0,0.00025479,2]
[335144615,1723890686169,-1678.22,0.00025479,2]
[335144616,1723890686179,-500.0,0.00025479,2]
[335144617,1723890686190,-523.73,0.00025479,2]
[335144618,1723890686200,-500.0,0.00025479,2]
[335144619,1723890686211,-929.06,0.00025479,2]
[335144620,1723890686221,-500.0,0.00025479,2]
[335144621,1723890686232,-500.0,0.00025479,2]
[335144622,1723890686243,-500.0,0.00025479,2]
[335144623,1723890686253,-5055.53,0.00025479,2]
[335144624,1723890686263,-726.16,0.00025479,2]
[335144625,1723890686273,-651.69,0.00025479,2]
[335144626,1723890686283,-1917.36,0.00025479,2]
[335144627,1723890686293,-500.0,0.00025479,2]
[335144628,1723890686404,-500.0,0.00025479,2]
[335144629,1723890686415,-785.84,0.00025479,2]
[335144630,1723890686424,-500.0,0.00025479,2]
[335144631,1723890686434,-542.57,0.00025479,2]
[335144632,1723890686453,-501.64,0.00025479,2]
[335144633,1723890686462,-1010.89,0.00025479,2]
[335144634,1723890686472,-530.09,0.00025479,2]
[335144635,1723890686480,-605.21,0.00025479,2]
[335144636,1723890686489,-751.83,0.00025479,2]
[335144637,1723890686499,-500.0,0.00025479,2]
[335144638,1723890686508,-1556.4,0.00025479,2]
[335144639,1723890686517,-500.23,0.00025479,2]
[335144640,1723890686528,-752.59,0.00025479,2]
[335144641,1723890686539,-611.43,0.00025479,2]
[335144642,1723890686548,-500.0,0.00025479,2]
[335144643,1723890686559,-668.57,0.00025479,2]
[335144644,1723890686569,-500.0,0.00025479,2]
[335144645,1723890686579,-842.04,0.00025479,2]
[335144646,1723890686590,-794.65,0.00025479,2]
[335144647,1723890686600,-500.0,0.00025479,2]
[335144648,1723890686609,-500.0,0.00025479,2]
[335144649,1723890686619,-273.10810945,0.00025479,2]
[335144650,1723890686628,-533.77,0.00025479,2]
[335144651,1723890686637,-500.0,0.00025479,2]
[335144652,1723890686647,-545.57,0.00025479,2]
[335144653,1723890686657,-588.4,0.00025479,2]
[335144654,1723890686666,-500.0,0.00025479,2]
[335144655,1723890686676,-618.32,0.00025479,2]
[335144656,1723890686686,-500.0,0.00025479,2]
[335144657,1723890686696,-500.28,0.00025479,2]
[335144658,1723890686707,-885.0,0.00025479,2]
[335144659,1723890686717,-864.62,0.00025479,2]
[335144660,1723890686728,-514.86,0.00025479,2]
[335144661,1723890686739,-553.37,0.00025479,2]
[335144662,1723890686751,-693.53,0.00025479,2]
[335144663,1723890686762,-619.18,0.00025479,2]
[335144664,1723890686773,-1400.99,0.00025479,2]
[335144665,1723890686784,-500.0,0.00025479,2]
[335144666,1723890686795,-1038.37,0.00025479,2]
[335144667,1723890686807,-1018.27,0.00025479,2]
[335144668,1723890686818,-500.0,0.00025479,2]
[335144669,1723890686830,-517.68,0.00025479,2]
[335144670,1723890686842,-530.93,0.00025479,2]
[335144671,1723890686855,-655.89,0.00025479,2]
[335144672,1723890686865,-591.89,0.00025479,2]
[335144673,1723890686877,-500.0,0.00025479,2]
[335144674,1723890686886,-1232.8,0.00025479,2]
[335144675,1723890686896,-500.0,0.00025479,2]
[335144676,1723890686906,-500.0,0.00025479,2]
[335144677,1723890686916,-500.0,0.00025479,2]
[335144678,1723890686927,-500.0,0.00025479,2]
[335144679,1723890686941,-543.94,0.00025479,2]
[335144680,1723890686952,-571.25,0.00025479,2]
[335144681,1723890686964,-500.0,0.00025479,2]
[335144682,1723890686975,-503.76,0.00025479,2]
[335144683,1723890686985,-725.37,0.00025479,2]
[335144684,1723890686996,-500.0,0.00025479,2]
[335144685,1723890687007,-582.58,0.00025479,2]
[335144686,1723890687017,-739.32,0.00025479,2]
[335144687,1723890687027,-1438.68,0.00025479,2]
[335144688,1723890687037,-2248.55,0.00025479,2]
[335144689,1723890687052,-769.77,0.00025479,2]
[335144690,1723890687062,-657.64,0.00025479,2]
[335144691,1723890687073,-590.2,0.00025479,2]
[335144692,1723890687084,-788.03,0.00025479,2]
[335144693,1723890687095,-2904.2,0.00025479,2]
[335144694,1723890687105,-500.0,0.00025479,2]
[335144695,1723890687115,-500.0,0.00025479,2]
[335144696,1723890687126,-500.0,0.00025479,2]
[335144697,1723890687136,-500.0,0.00025479,2]
[335144698,1723890687147,-737.6,0.00025479,2]
[335144699,1723890687156,-1067.82,0.00025479,2]
[335144700,1723890687166,-22187.11,0.00025479,2]
[335144701,1723890687176,-6948.85,0.00025479,2]
[335144702,1723890687188,-1369.92,0.00025479,2]
[335144703,1723890687199,-668.08,0.00025479,2]
[335144704,1723890687209,-1067.8,0.00025479,2]
[335144705,1723890687219,-2952.04,0.00025479,2]
[335144706,1723890687229,-1761.64,0.00025479,2]
[335144707,1723890687240,-1088.19,0.00025479,2]
[335144708,1723890687250,-500.0,0.00025479,2]
[335144709,1723890687260,-616.8,0.00025479,2]
[335144710,1723890687270,-1664.5,0.00025479,2]
[335144711,1723890687280,-500.0,0.00025479,2]
[335144712,1723890687290,-869.36,0.00025479,2]
[335144713,1723890687299,-1108.77,0.00025479,2]
[335144714,1723890687309,-905.39,0.00025479,2]
[335144715,1723890687319,-500.0,0.00025479,2]
[335144716,1723890687329,-2520.02,0.00025479,2]
[335144717,1723890687339,-569.78,0.00025479,2]
[335144718,1723890687349,-3853.14,0.00025479,2]
[335144719,1723890687359,-2333.05,0.00025479,2]
[335144720,1723890687369,-679.93,0.00025479,2]
[335144721,1723890687379,-500.0,0.00025479,2]
[335144722,1723890687389,-500.0,0.00025479,2]
[335144723,1723890687399,-521.59,0.00025479,2]
[335144724,1723890687409,-2770.69,0.00025479,2]
[335144725,1723890687419,-692.79,0.00025479,2]
[335144726,1723890687429,-500.28,0.00025479,2]
[335144727,1723890687439,-500.0,0.00025479,2]
[335144728,1723890687449,-500.0,0.00025479,2]
[335144729,1723890687459,-1389.6,0.00025479,2]
[335144730,1723890687469,-500.0,0.00025479,2]
[335144731,1723890687480,-4570.81,0.00025479,2]
[335144732,1723890687490,-531.66,0.00025479,2]
[335144733,1723890687500,-500.0,0.00025479,2]
[335144734,1723890687509,-150.112233,0.000255,8]
[335144735,1723890687519,-200.0,0.0002553,2]
[335144736,1723890687528,-150.0,0.0002554,2]
[335144737,1723890687538,-200.0,0.0002554,2]
[335144738,1723890687547,-304.06856522,0.0002554,2]
[335144739,1723890687558,-200.0,0.0002554,2]
[335144740,1723890687571,-200.0,0.0002554,2]
[335144741,1723890687582,-200.0,0.0002554,2]
[335144742,1723890687594,-5109.65955522,0.00025541,2]
[335144743,1723890687604,-2312.85880506,0.00025598,2]
[335144744,1723890687616,-500.0,0.00025752,2]
[335144745,1723890687626,-500.0,0.00025752,2]
[335144746,1723890687636,-1302.46,0.00025752,2]
[335144747,1723890687647,-3815.52,0.00025752,2]
[335144748,1723890687658,-1463.19,0.00025752,2]
[335144749,1723890687670,-1313.81,0.00025752,2]
[335144750,1723890687680,-557.32,0.00025752,2]
[335144751,1723890687692,-4587.93,0.00025752,2]
[335144752,1723890687702,-1281.48,0.00025752,2]
[335144753,1723890687712,-545.49045457,0.00025752,2]
[335144754,1723890687722,-1296.99,0.00025752,2]
[335144755,1723890687732,-500.0,0.00025752,2]
[335144756,1723890687742,-1380.37,0.00025752,2]
[335144757,1723890687754,-500.0,0.00025752,2]
[335144758,1723890687764,-3297.99,0.00025752,2]
[335144759,1723890687773,-500.0,0.00025752,2]
[335144760,1723890687783,-2369.1,0.00025752,2]
[335144761,1723890687793,-3259.07,0.00025752,2]
[335144762,1723890687803,-2059.73,0.00025752,2]
[335144763,1723890687813,-558.53,0.00025752,2]
[335144764,1723890687823,-500.0,0.00025752,2]
[335144765,1723890687832,-1089.27,0.00025752,2]
[335144766,1723890687842,-500.0,0.00025752,2]
[335144767,1723890687851,-4118.73,0.00025752,2]
[335144768,1723890687953,-537.86,0.00025752,2]
[335144769,1723890687963,-500.0,0.00025752,2]
[335144770,1723890687973,-500.0,0.00025753,2]
[335144771,1723890687983,-500.0,0.00025753,2]
[335144772,1723890687993,-500.0,0.00025753,2]
[335144773,1723890688003,-500.0,0.00025753,2]
[335144774,1723890688012,-500.0,0.00025753,2]
[335144775,1723890688022,-500.0,0.00025753,2]
[335144776,1723890688034,-500.0,0.00025753,2]
[335144777,1723890688045,-500.0,0.00025753,2]
[335144778,1723890688056,-500.0,0.00025753,2]
[335144779,1723890688066,-500.0,0.00025753,2]
[335144780,1723890688076,-500.0,0.00025753,2]
[335144781,1723890688085,-575.75,0.00025753,2]
[335144782,1723890688095,-364.45625135,0.00025753,2]
[335144783,1723890688105,-506.64018807,0.00025753,2]
[335144784,1723890688115,-500.0,0.00025753,2]
[335144785,1723890688124,-500.0,0.00025753,2]
[335144786,1723890688133,-528.48,0.00025753,2]
[335144787,1723890688143,-229.93492971,0.00025753,2]
[335144788,1723890688152,-500.0,0.00025753,2]
[335144789,1723890688162,-500.0,0.00025753,2]
[335144790,1723890688172,-500.0,0.00025753,2]
[335144791,1723890688182,-500.0,0.00025753,2]
[335144792,1723890688194,-500.0,0.00025753,2]
[335144793,1723890688203,-500.0,0.00025753,2]
[335144794,1723890688213,-500.0,0.00025753,2]
[335144795,1723890688222,-885.91,0.00025753,2]
[335144796,1723890688233,-500.0,0.00025753,2]
[335144797,1723890688242,-500.0,0.00025753,2]
[335144798,1723890688252,-500.0,0.00025753,2]
[335144799,1723890688262,-500.0,0.00025753,2]
[335144800,1723890688273,-500.0,0.00025753,2]
[335144801,1723890688283,-500.0,0.00025753,2]
[335144802,1723890688293,-500.0,0.00025753,2]
[335144803,1723890688304,-500.0,0.00025753,2]
[335144804,1723890688314,-642.6,0.00025753,2]
[335144805,1723890688324,-500.0,0.00025753,2]
[335144806,1723890688334,-529.2,0.00025753,2]
[335144807,1723890688344,-500.0,0.00025753,2]
[335144808,1723890688354,-3128.21,0.00025753,2]
[335144809,1723890688363,-500.0,0.00025753,2]
[335144810,1723890688372,-500.0,0.00025753,2]
[335144811,1723890688382,-500.55,0.00025753,2]
[335144812,1723890688391,-500.0,0.00025753,2]
[335144813,1723890688401,-500.0,0.00025753,2]
[335144814,1723890688410,-500.0,0.00025753,2]
[335144815,1723890688420,-500.0,0.00025753,2]
[335144816,1723890688429,-1197.09,0.00025753,2]
[335144817,1723890688440,-663.25,0.00025753,2]
[335144818,1723890688449,-410.05,0.00025753,2]
[335144819,1723890688461,-553.57,0.00025753,2]
[335144820,1723890688471,-500.0,0.00025753,2]
[335144821,1723890688481,-500.0,0.00025753,2]
[335144822,1723890688491,-833.32,0.00025753,2]
[335144823,1723890688501,-500.0,0.00025753,2]
[335144824,1723890688511,-593.58,0.00025753,2]
[335144825,1723890688522,-635.22,0.00025753,2]
[335144826,1723890688531,-500.0,0.00025753,2]
[335144827,1723890688542,-500.0,0.00025753,2]
[335144828,1723890688551,-1678.22,0.00025753,2]
[335144829,1723890688561,-500.0,0.00025753,2]
[335144830,1723890688571,-523.73,0.00025753,2]
[335144831,1723890688582,-500.0,0.00025753,2]
[335144832,1723890688604,-929.06,0.00025753,2]
[335144833,1723890688624,-500.0,0.00025753,2]
[335144834,1723890688647,-500.0,0.00025753,2]
[335144835,1723890688669,-500.0,0.00025753,2]
[335144836,1723890688689,-5055.53,0.00025753,2]
[335144837,1723890688709,-726.16,0.00025753,2]
[335144838,1723890688727,-651.69,0.00025753,2]
[335144839,1723890688746,-1917.36,0.00025753,2]
[335144840,1723890688766,-500.0,0.00025753,2]
[335144841,1723890688788,-500.0,0.00025753,2]
[335144842,1723890688805,-785.84,0.00025753,2]
[335144843,1723890688823,-500.0,0.00025753,2]
[335144844,1723890688840,-542.57,0.00025753,2]
[335144845,1723890688860,-501.64,0.00025753,2]
[335144846,1723890688875,-1010.89,0.00025753,2]
[335144847,1723890688892,-530.09,0.00025753,2]
[335144848,1723890688908,-605.21,0.00025753,2]
[335144849,1723890688925,-751.83,0.00025753,2]
[335144850,1723890688942,-500.0,0.00025753,2]
[335144851,1723890688958,-1556.4,0.00025753,2]
[335144852,1723890688973,-500.23,0.00025753,2]
[335144853,1723890688990,-752.59,0.00025753,2]
[335144854,1723890689010,-611.43,0.00025753,2]
[335144855,1723890689026,-500.0,0.00025753,2]
[335144856,1723890689042,-668.57,0.00025753,2]
[335144857,1723890689062,-500.0,0.00025753,2]
[335144858,1723890689076,-842.04,0.00025753,2]
[335144859,1723890689093,-794.65,0.00025753,2]
[335144860,1723890689110,-500.0,0.00025753,2]
[335144861,1723890689126,-355.18529343,0.00025753,2]
[335144862,1723890689143,-533.77,0.00025753,2]
[335144863,1723890689160,-500.0,0.00025753,2]
[335144864,1723890689178,-545.57,0.00025753,2]
[335144865,1723890689194,-588.4,0.00025753,2]
[335144866,1723890689212,-618.32,0.00025753,2]
[335144867,1723890689230,-500.0,0.00025753,2]
[335144868,1723890689246,-500.0,0.00025753,2]
[335144869,1723890689261,-500.28,0.00025753,2]
[335144870,1723890689277,-1215.121657,0.00025753,7]
[335144871,1723890689294,-1215.121657,0.00025753,7]
[335144872,1723890689311,-885.0,0.00025753,2]
[335144873,1723890689327,-864.62,0.00025753,2]
[335144874,1723890689342,-514.86,0.00025753,2]
[335144875,1723890689359,-553.37,0.00025753,2]
[335144876,1723890689375,-693.53,0.00025753,2]
[335144877,1723890689392,-619.18,0.00025753,2]
[335144878,1723890689410,-1400.99,0.00025753,2]
[335144879,1723890689425,-500.0,0.00025753,2]
[335144880,1723890689441,-1038.37,0.00025753,2]
[335144881,1723890689458,-1018.27,0.00025753,2]
[335144882,1723890689475,-500.0,0.00025753,2]
[335144883,1723890689490,-517.68,0.00025753,2]
[335144884,1723890689507,-530.93,0.00025753,2]
[335144885,1723890689522,-655.89,0.00025753,2]
[335144886,1723890689537,-1200.0,0.00025753,7]
[335144887,1723890689552,-1200.0,0.00025753,7]
[335144888,1723890689568,-1200.0,0.00025753,7]
[335144889,1723890689583,-1200.0,0.00025753,7]
[335144890,1723890689598,-1200.0,0.00025753,7]
[335144891,1723890689613,-1200.0,0.00025753,7]
[335144892,1723890689628,-1200.0,0.00025753,7]
[335144893,1723890689643,-1200.0,0.00025753,7]
[335144894,1723890689660,-1200.0,0.00025753,7]
[335144895,1723890689676,-1200.0,0.00025753,7]
[335144896,1723890689812,-1200.0,0.00025753,7]
[335144897,1723890689822,-1200.0,0.00025753,7]
[335144898,1723890689832,-1200.0,0.00025753,7]
[335144899,1723890689842,-1200.0,0.00025753,7]
[335144900,1723890689852,-1200.0,0.00025753,7]
[335144901,1723890689861,-827.819781,0.00025753,7]
[335144902,1723890689871,-591.89,0.00025753,2]
[335144903,1723890689881,-500.0,0.00025753,2]
[335144904,1723890689891,-1232.8,0.00025753,2]
[335144905,1723890689900,-500.0,0.00025753,2]
[335144906,1723890689910,-500.0,0.00025753,2]
[335144907,1723890689919,-500.0,0.00025753,2]
[335144908,1723890689929,-500.0,0.00025753,2]
[335144909,1723890689940,-543.94,0.00025753,2]
[335144910,1723890689949,-571.25,0.00025753,2]
[335144911,1723890689959,-500.0,0.00025753,2]
[335144912,1723890689969,-503.76,0.00025753,2]
[335144913,1723890689979,-725.37,0.00025753,2]
[335144914,1723890689990,-217.668022,0.00025753,7]
[335144915,1723890690000,-500.0,0.00025753,2]
[335144916,1723890690010,-864.264814,0.00025753,7]
[335144917,1723890690020,-582.58,0.00025753,2]
[335144918,1723890690030,-217.668022,0.00025753,7]
[335144919,1723890690040,-739.32,0.00025753,2]
[335144920,1723890690055,-864.264814,0.00025753,7]
[335144921,1723890690064,-1438.68,0.00025753,2]
[335144922,1723890690074,-2248.55,0.00025753,2]
[335144923,1723890690083,-769.77,0.00025753,2]
[335144924,1723890690095,-657.64,0.00025753,2]
[335144925,1723890690105,-590.2,0.00025753,2]
[335144926,1723890690115,-788.03,0.00025753,2]
[335144927,1723890690126,-2904.2,0.00025753,2]
[335144928,1723890690136,-500.0,0.00025753,2]
[335144929,1723890690145,-500.0,0.00025753,2]
[335144930,1723890690156,-500.0,0.00025753,2]
[335144931,1723890690166,-500.0,0.00025753,2]
[335144932,1723890690176,-737.6,0.00025753,2]
[335144933,1723890690186,-1067.82,0.00025753,2]
[335144934,1723890690197,-22187.11,0.00025753,2]
[335144935,1723890690206,-6948.85,0.00025753,2]
[335144936,1723890690216,-668.08,0.00025753,2]
[335144937,1723890690226,-1369.92,0.00025753,2]
[335144938,1723890690236,-1067.8,0.00025753,2]
[335144939,1723890690247,-2952.04,0.00025753,2]
[335144940,1723890690258,-1761.64,0.00025753,2]
[335144941,1723890690268,-1088.19,0.00025753,2]
[335144942,1723890690279,-458.91612601,0.00025753,2]
[335144943,1723890690288,-616.8,0.00025753,2]
[335144944,1723890690298,-1664.5,0.00025753,2]
[335144945,1723890690309,-500.0,0.00025753,2]
[335144946,1723890690320,-869.36,0.00025753,2]
[335144947,1723890690329,-1108.77,0.00025753,2]
[335144948,1723890690339,-905.39,0.00025753,2]
[335144949,1723890690349,-500.0,0.00025753,2]
[335144950,1723890690359,-2520.02,0.00025753,2]
[335144951,1723890690369,-569.78,0.00025753,2]
[335144952,1723890690379,-3853.14,0.00025753,2]
[335144953,1723890690388,-2333.05,0.00025753,2]
[335144954,1723890690398,-679.93,0.00025753,2]
[335144955,1723890690408,-500.0,0.00025753,2]
[335144956,1723890690418,-500.0,0.00025753,2]
[335144957,1723890690428,-521.59,0.00025753,2]
[335144958,1723890690440,-2770.69,0.00025753,2]
[335144959,1723890690451,-692.79,0.00025753,2]
[335144960,1723890690462,-500.28,0.00025753,2]
[335144961,1723890690472,-500.0,0.00025753,2]
[335144962,1723890690482,-500.0,0.00025753,2]
[335144963,1723890690492,-1389.6,0.00025753,2]
[335144964,1723890690502,-500.0,0.00025753,2]
[335144965,1723890690511,-4570.81,0.00025753,2]
[335144966,1723890690523,-531.66,0.00025753,2]
[335144967,1723890690532,-500.0,0.00025753,2]
[335144968,1723890690542,-810.49,0.00025756,2]
[335144969,1723890690552,-500.0,0.00025756,2]
[335144970,1723890690561,-810.49,0.00025782,2]
[335144971,1723890690572,-500.0,0.00025782,2]
[335144972,1723890690582,-500.0,0.0002589,2]
[335144973,1723890690592,-150.112233,0.000259,8]
[335144974,1723890690602,-19090.94317921,0.0002595,2]
[335144975,1723890690612,-5109.65955522,0.00025983,2]
[335144976,1723890690621,-500.0,0.00026026,2]
[335144977,1723890690631,-500.0,0.00026026,2]
[335144978,1723890690640,-1302.46,0.00026026,2]
[335144979,1723890690650,-3815.52,0.00026026,2]
[335144980,1723890690661,-1463.19,0.00026026,2]
[335144981,1723890690671,-1313.81,0.00026026,2]
[335144982,1723890690681,-557.32,0.00026026,2]
[335144983,1723890690693,-4587.93,0.00026026,2]
[335144984,1723890690703,-1281.48,0.00026026,2]
[335144985,1723890690713,-1296.99,0.00026026,2]
[335144986,1723890690724,-500.0,0.00026026,2]
[335144987,1723890690734,-1380.37,0.00026026,2]
[335144988,1723890690744,-500.0,0.00026026,2]
[335144989,1723890690754,-3297.99,0.00026026,2]
[335144990,1723890690763,-500.0,0.00026026,2]
[335144991,1723890690773,-2369.1,0.00026026,2]
[335144992,1723890690783,-3259.07,0.00026026,2]
[335144993,1723890690793,-2059.73,0.00026026,2]
[335144994,1723890690804,-558.53,0.00026026,2]
[335144995,1723890690814,-500.0,0.00026026,2]
[335144996,1723890690825,-1089.27,0.00026026,2]
[335144997,1723890690835,-500.0,0.00026026,2]
[335144998,1723890690844,-4118.73,0.00026026,2]
[335144999,1723890690854,-537.86,0.00026026,2]
[335145000,1723890690864,-500.0,0.00026026,2]
[335145001,1723890690873,-500.0,0.00026027,2]
[335145002,1723890690882,-500.0,0.00026027,2]
[335145003,1723890690891,-348.42162307,0.00026027,2]
[335145004,1723890690901,-500.0,0.00026027,2]
[335145005,1723890690910,-500.0,0.00026027,2]
[335145006,1723890690921,-500.0,0.00026027,2]
[335145007,1723890690932,-500.0,0.00026027,2]
[335145008,1723890690945,-500.0,0.00026027,2]
[335145009,1723890690955,-500.0,0.00026027,2]
[335145010,1723890690965,-250.77918521,0.00026027,2]
[335145011,1723890690976,-500.0,0.00026027,2]
[335145012,1723890690986,-575.75,0.00026027,2]
[335145013,1723890690995,-500.0,0.00026027,2]
[335145014,1723890691005,-500.0,0.00026027,2]
[335145015,1723890691015,-528.48,0.00026027,2]
[335145016,1723890691025,-500.0,0.00026027,2]
[335145017,1723890691035,-500.0,0.00026027,2]
[335145018,1723890691046,-500.0,0.00026027,2]
[335145019,1723890691057,-500.0,0.00026027,2]
[335145020,1723890691066,-500.0,0.00026027,2]
[335145021,1723890691076,-487.53109502,0.00026027,2]
[335145022,1723890691085,-500.0,0.00026027,2]
[335145023,1723890691096,-885.91,0.00026027,2]
[335145024,1723890691106,-503.48843336,0.00026027,2]
[335145025,1723890691115,-500.0,0.00026027,2]
[335145026,1723890691124,-500.0,0.00026027,2]
[335145027,1723890691134,-210.86174546,0.00026027,2]
[335145028,1723890691143,-500.0,0.00026027,2]
[335145029,1723890691153,-500.0,0.00026027,2]
[335145030,1723890691162,-500.0,0.00026027,2]
[335145031,1723890691173,-507.47872782,0.00026027,2]
[335145032,1723890691183,-642.6,0.00026027,2]
[335145033,1723890691193,-500.0,0.00026027,2]
[335145034,1723890691203,-529.2,0.00026027,2]
[335145035,1723890691213,-500.0,0.00026027,2]
[335145036,1723890691223,-3128.21,0.00026027,2]
[335145037,1723890691233,-410.24252774,0.00026027,2]
[335145038,1723890691243,-500.0,0.00026027,2]
[335145039,1723890691253,-500.55,0.00026027,2]
[335145040,1723890691263,-634.00364822,0.00026027,2]
[335145041,1723890691273,-500.0,0.00026027,2]
[335145042,1723890691284,-500.0,0.00026027,2]
[335145043,1723890691294,-500.0,0.00026027,2]
[335145044,1723890691303,-1197.09,0.00026027,2]
[335145045,1723890691313,-663.25,0.00026027,2]
[335145046,1723890691323,-553.57,0.00026027,2]
[335145047,1723890691333,-500.0,0.00026027,2]
[335145048,1723890691343,-500.0,0.00026027,2]
[335145049,1723890691353,-833.32,0.00026027,2]
[335145050,1723890691362,-500.0,0.00026027,2]
[335145051,1723890691372,-593.58,0.00026027,2]
[335145052,1723890691382,-635.22,0.00026027,2]
[335145053,1723890691391,-578.85446169,0.00026027,2]
[335145054,1723890691401,-500.0,0.00026027,2]
[335145055,1723890691411,-1678.22,0.00026027,2]
[335145056,1723890691507,-500.0,0.00026027,2]
[335145057,1723890691517,-523.73,0.00026027,2]
[335145058,1723890691527,-500.0,0.00026027,2]
[335145059,1723890691537,-929.06,0.00026027,2]
[335145060,1723890691548,-500.0,0.00026027,2]
[335145061,1723890691558,-500.0,0.00026027,2]
[335145062,1723890691567,-500.0,0.00026027,2]
[335145063,1723890691577,-5055.53,0.00026027,2]
[335145064,1723890691587,-726.16,0.00026027,2]
[335145065,1723890691597,-651.69,0.00026027,2]
[335145066,1723890691607,-1917.36,0.00026027,2]
[335145067,1723890691617,-500.0,0.00026027,2]
[335145068,1723890691626,-500.0,0.00026027,2]
[335145069,1723890691636,-785.84,0.00026027,2]
[335145070,1723890691647,-500.0,0.00026027,2]
[335145071,1723890691657,-542.57,0.00026027,2]
[335145072,1723890691667,-501.64,0.00026027,2]
[335145073,1723890691676,-1010.89,0.00026027,2]
[335145074,1723890691686,-530.09,0.00026027,2]
[335145075,1723890691696,-605.21,0.00026027,2]
[335145076,1723890691707,-751.83,0.00026027,2]
[335145077,1723890691717,-500.0,0.00026027,2]
[335145078,1723890691728,-1556.4,0.00026027,2]
[335145079,1723890691738,-500.23,0.00026027,2]
[335145080,1723890691749,-752.59,0.00026027,2]
[335145081,1723890691759,-611.43,0.00026027,2]
[335145082,1723890691769,-500.0,0.00026027,2]
[335145083,1723890691780,-1406.266005,0.00026027,7]
[335145084,1723890691790,-1406.266005,0.00026027,7]
[335145085,1723890691800,-668.57,0.00026027,2]
[335145086,1723890691810,-500.0,0.00026027,2]
[335145087,1723890691820,-842.04,0.00026027,2]
[335145088,1723890691831,-794.65,0.00026027,2]
[335145089,1723890691840,-500.0,0.00026027,2]
[335145090,1723890691850,-533.77,0.00026027,2]
[335145091,1723890691860,-522.06622675,0.00026027,2]
[335145092,1723890691870,-545.57,0.00026027,2]
[335145093,1723890691880,-588.4,0.00026027,2]
[335145094,1723890691891,-618.32,0.00026027,2]
[335145095,1723890691901,-500.0,0.00026027,2]
[335145096,1723890691911,-500.0,0.00026027,2]
[335145097,1723890691921,-500.28,0.00026027,2]